Cogmind - Beta 10.2 @@@ ROGUE MODE // 2021.06.05 @ 16:33:05 Player: Timo Result: Destroyed by D-53 Grenadier with Mini Grenade Launcher Performance ------------- Evolutions (0) 0 Regions Visited (2) 400 Robots Destroyed (13) 65 Value Destroyed (406) 406 Prototype IDs (0) 0 Alien Tech Used (0) 0 Bonus (0) 0 TOTAL SCORE: 871 Bonus ------- None Cogmind --------- Core Integrity 0/250 Matter 300/300 Energy 250/250 System Corruption 2% Temperature Cool (0) Movement Treading (180) Ox1 Location -10/Mines Parts ------- > --- POWER (1) -------- Ion Engine > --- PROPULSION (2) --- Light Treads > --- UTILITY (2) ------ Large Storage Unit Large Storage Unit > --- WEAPON (2) ------- Beam Cannon > --- INVENTORY (16) --- Ion Engine Aluminum Leg Aluminum Leg Improved Heat Sink Small Storage Unit High-capacity Matter Pod (200) Structural Scanner Sensor Array Signal Interpreter Terrain Scan Processor ECM Suite Particle Gun Assault Rifle Mining Claw Peak State ------------ > --- POWER ------------ Ion Engine > --- PROPULSION ------- Light Treads Aluminum Leg > --- UTILITY ---------- Large Storage Unit Large Storage Unit > --- WEAPON ----------- Assault Rifle Improved Light Cannon > --- INVENTORY -------- Ion Engine Aluminum Leg Aluminum Leg Small Storage Unit Medium Matter Pod Structural Scanner Sensor Array Signal Interpreter Terrain Scan Processor ECM Suite Beam Cannon Assault Rifle Light Assault Rifle Mining Claw [Rating: 9] Favorites ----------- Power Ion Engine Engine Ion Engine Propulsion Aluminum Leg Treads Light Treads Leg Aluminum Leg Utility Large Storage Unit Storage Large Storage Unit Weapon Assault Rifle Energy Cannon Beam Cannon Ballistic Gun Assault Rifle Ballistic Cannon Improved Light Cannon Build | -11 -10 -10 ------- Run | Scr Mat Min Slots Evolved . | . . . Power . | . . . Propulsion . | . . . Utility . | . . . Weapon . | . . . Parts Attached 14 | 6 4 4 Power 2 | 1 . 1 Engine 2 | 1 . 1 Core . | . . . Reactor . | . . . Propulsion 5 | 2 1 2 Treads 2 | . 1 1 Leg 3 | 2 . 1 Wheel . | . . . Hover . | . . . Flight . | . . . Utility 3 | 1 2 . Device . | . . . Storage 3 | 1 2 . Processor . | . . . Hackware . | . . . Protection . | . . . Artifact . | . . . Weapon 4 | 2 1 1 Energy Gun . | . . . Energy Cannon 1 | . . 1 Ballistic Gun 2 | 2 . . Ballistic Cannon 1 | . 1 . Launcher . | . . . Special Weapon . | . . . Impact Weapon . | . . . Slashing Weapon . | . . . Piercing Weapon . | . . . Special Melee Weapon . | . . . Unidentified Prototypes . | . . . Parts Lost 5 | . . 5 Power 1 | . . 1 Propulsion 2 | . . 2 Utility . | . . . Weapon 2 | . . 2 Highest Loss Streak 2 | . . 2 Average Slot Usage (%) 97 | . 98 95 Engine 13 | . 14 13 Treads 14 | . 12 18 Leg 13 | . 15 7 Storage 27 | . 26 28 Energy Cannon 3 | . . 11 Ballistic Gun 16 | . 24 . Ballistic Cannon 6 | . 3 13 Naked Turns . | . . . Heaviest Build 44 | 12 43 44 Greatest Support 40 | 20 20 40 Greatest Overweight (x) 3 | 3 2 2 Average Overweight (x) 1 | . 1 1 Largest Inventory Capacity 16 | 6 16 16 Average Capacity 14 | 5 15 16 Most Carried 16 | 6 16 15 Average Carried 11 | 4 11 13 Final Capacity 16 | 6 16 16 Final Carried 14 | 6 14 14 Class Distribution -------------------- 100% | Mutant Dominant Class ---------------- Mutant | -10/Materials Mutant | -10/Mines Resources | -11 -10 -10 ----------- Run | Scr Mat Min Matter Collected 662 | 221 322 119 Remotely . | . . . Salvage Created 394 | . 293 101 Parts 27 | . 17 10 Haulers Intercepted . | . . . Recyclers Shooed . | . . . Parts Field Recycled . | . . . Retrieved Matter . | . . . Parts Self-Destructed . | . . . Prevented . | . . . Kills | -11 -10 -10 ------- Run | Scr Mat Min Combat Hostiles Destroyed 13 | . 8 5 Guns 4 | . 4 . Cannons 9 | . 4 5 Classes Destroyed 2 | . 1 1 Swarmer 3 | . . 3 Grunt 10 | . 8 2 Best Kill Streak 3 | . 2 3 Combat Bots Only 3 | . 2 3 Max Kills in Single Turn 1 | . 1 1 Gunslinging . | . . . Exploded . | . . . Melee . | . . . Uniques/NPCs Destroyed . | . . . Combat | -11 -10 -10 -------- Run | Scr Mat Min Damage Taken 1021 | . 447 574 Core 259 | . 67 192 Absorbed by Shields . | . . . Core Remaining (%) 100 | 100 . . Volleys Fired 62 | . 43 19 Largest 2 | . 2 1 Hottest 40 | . 40 39 Shots Fired 66 | . 47 19 Gun 37 | . 37 . Cannon 29 | . 10 19 Launcher . | . . . Special . | . . . Kinetic 66 | . 47 19 Thermal . | . . . Explosive . | . . . Electromagnetic . | . . . Robot Hit Streak 10 | . 10 2 Robot Miss Streak 3 | . 3 3 Penetration Max . | . . . Secondary Targets . | . . . Shots Hit Robots 46 | . 37 9 Core Hits 19 | . 13 6 Critical Hits . | . . . Critical Kills . | . . . Critical Parts Destroyed . | . . . Melee Attacks . | . . . Impact . | . . . Slashing . | . . . Piercing . | . . . Sneak Attacks . | . . . Combat Hostiles . | . . . Follow-up Attacks . | . . . Damage Inflicted 730 | . 537 193 Guns 371 | . 371 . Cannons 359 | . 166 193 Explosions . | . . . Melee . | . . . Ramming . | . . . Kinetic 730 | . 537 193 Thermal . | . . . Explosive . | . . . Electromagnetic . | . . . Impact . | . . . Slashing . | . . . Piercing . | . . . Highest Corruption 2 | . 2 2 Average Corruption 2 | . 2 2 Corruption Purged . | . . . Effects 14 | . 10 4 Message Errors 4 | . 3 1 Heat Flow Errors 3 | . 2 1 Energy Discharges 4 | . 2 2 Data Loss (minor) 2 | . 2 . Targeting Errors 1 | . 1 . Overload Shots . | . . . Overflow Damage 9 | . 9 . Projectiles 9 | . 9 . Explosions . | . . . Melee . | . . . Knockbacks 3 | . 2 1 Impact . | . . . Kinetic 3 | . 2 1 Secondary . | . . . Self-Inflicted Damage . | . . . Shots . | . . . Rammed . | . . . Targets Rammed . | . . . Kicked . | . . . Crushed . | . . . Highest Temperature 207 | . 207 203 Average Temperature 56 | . 51 63 Received Heat Transfer 354 | . 261 93 Siege Activations . | . . . Robots Corrupted . | . . . Combat Hostiles . | . . . Parts Fried . | . . . Impact Corruptions . | . . . Robots Melted . | . . . Combat Hostiles . | . . . Parts Melted . | . . . Heat Transferred . | . . . Parts Sabotaged . | . . . Parts Stolen . | . . . Parts Stripped . | . . . Power Chain Reactions . | . . . Missiles Intercepted . | . . . Alert | -11 -10 -10 ------- Run | Scr Mat Min Peak Influence 185 | . 185 162 Initial 72 | . . 72 Average 63 | . 47 116 Maximum Alert Level . | . . . Low Security (%) 100 | 100 100 100 Level 1 . | . . . Level 2 . | . . . Level 3 . | . . . Level 4 . | . . . Level 5 . | . . . High Security . | . . . Max Security . | . . . Squads Dispatched 3 | . 3 . Investigation . | . . . Extermination . | . . . Reinforcement 3 | . 3 . Assault . | . . . Garrison . | . . . Intercept . | . . . Construction Impeded . | . . . Haulers Reinforced . | . . . Stealth | -11 -10 -10 --------- Run | Scr Mat Min Distress Signals . | . . . Communications Jammed . | . . . Distress Signals . | . . . Times Spotted 45 | . 19 26 Peak Tracking Total 19 | . 3 19 Tactical Retreats 2 | . 2 . Traps | -11 -10 -10 ------- Run | Scr Mat Min Traps Triggered 1 | . 1 . Indirectly . | . . . Trap Hack Attempts . | . . . Triggered . | . . . Disarmed . | . . . Reprogrammed . | . . . Reused . | . . . Traps Extracted . | . . . Installed . | . . . Triggered . | . . . Machines | -11 -10 -10 ---------- Run | Scr Mat Min Machines Disabled 1 | . 1 . Max in Single Turn 1 | . 1 . Machines Sabotaged . | . . . Garrisons Compromised . | . . . Overloaded Fab Kills . | . . . Fab Network Shutdowns . | . . . Hacking | -11 -10 -10 --------- Run | Scr Mat Min Machines Accessed 3 | . 3 . Terminals 3 | . 3 . Fabricators . | . . . Repair Stations . | . . . Recycling Units . | . . . Scanalyzers . | . . . Garrison Access . | . . . Total Hacks 4 | . 4 . Successful 2 | . 2 . Failed 2 | . 2 . Catastrophic . | . . . Database Lockouts . | . . . Manual . | . . . Terminals 4 | . 4 . Fabricators . | . . . Repair Stations . | . . . Recycling Units . | . . . Scanalyzers . | . . . Garrison Access . | . . . Terminal Hacks 2 | . 2 . Locate Traps 1 | . 1 . Hauler Manifests 1 | . 1 . Fabricator Hacks . | . . . Repair Station Hacks . | . . . Recycling Unit Hacks . | . . . Scanalyzer . | . . . Garrison Access Hacks . | . . . Unauthorized Hacks . | . . . Terminals . | . . . Fabricators . | . . . Repair Stations . | . . . Recycling Units . | . . . Scanalyzers . | . . . Garrison Access . | . . . Data Cores Recovered . | . . . Used . | . . . Hacking Detections 2 | . 2 . Full Trace Events . | . . . Feedback Events . | . . . Feedback Blocked . | . . . Robot Schematics Acquired . | . . . Robots Built . | . . . Matter . | . . . Time . | . . . Total Robot Build Rating . | . . . Part Schematics Acquired . | . . . Parts Built . | . . . Matter . | . . . Time . | . . . Total Part Build Rating . | . . . Parts Repaired . | . . . Time . | . . . Parts Recycled . | . . . Recycled Matter . | . . . Retrieved Matter . | . . . Retrieved Components . | . . . Parts Scanalyzed . | . . . Part Schematics Acquired . | . . . Parts Damaged . | . . . Bothacking | -11 -10 -10 ------------ Run | Scr Mat Min Used RIF Installer . | . . . Robots Hacked . | . . . Non-combat . | . . . Combat . | . . . Robot Hacks Applied . | . . . Relay Couplers Released . | . . . Robots Rewired . | . . . Allies Hacked . | . . . Hacks Repelled . | . . . Allies | -11 -10 -10 -------- Run | Scr Mat Min Total Allies 5 | . . 5 Largest Group 5 | . . 5 Highest-Rated Group 84 | . . 84 Highest-Rated Ally 31 | . . 31 Total Orders . | . . . Ally Attacks 19 | . . 19 Total Damage 248 | . . 248 Kills 4 | . . 4 Allies Corrupted . | . . . Allies Melted . | . . . Intel | -11 -10 -10 ------- Run | Scr Mat Min Robot Analysis Total . | . . . Derelict Logs Recovered . | . . . Drone Launches . | . . . Drone Recoveries . | . . . Exploration | -11 -10 -10 ------------- Run | Scr Mat Min Turns Passed 1759 | 131 1121 507 Spaces Moved 905 | 92 573 240 Core 33 | 33 . . Treads 731 | . 491 240 Legs 141 | 59 82 . Wheels . | . . . Hover . | . . . Flight . | . . . Fastest Speed 50 | 50 120 180 Average Speed 175 | 126 176 191 Slowest Speed 200 | 200 200 200 Overloaded Moves . | . . . Propulsion Burnouts . | . . . Robots Hopped . | . . . Cave-ins Triggered . | . . . Exploration Rate (%) 49 | 5 77 67 Regions Visited 2 Branch Regions 1 Pre-discovered Areas . | . . . Known Exits Taken . | . . . Unknown Exits Taken 2 | 1 1 . Scrap Searched 1 | . . 1 Spaces Dug . | . . . Terrain Destroyed 3 | . . 3 Melee . | . . . Projectile 3 | . . 3 AOE . | . . . Terrain Rammed . | . . . Walls Destroyed . | . . . Machines Disabled . | . . . Actions | -11 -10 -10 --------- Run | Scr Mat Min Total 1011 | 103 640 268 Wait 1 | . . 1 Move 903 | 91 572 240 Hop . | . . . Pick Up 20 | 6 12 2 Fast Attach 11 | 6 3 2 Attach 3 | . 1 2 Detach 4 | . 3 1 Swap . | . . . Drop 7 | . 6 1 Fire 62 | . 43 19 Melee . | . . . Ram . | . . . Kick . | . . . Crush . | . . . Escape Stasis . | . . . Rewire . | . . . Trap . | . . . Miscellaneous . | . . . Route ------- -11/Scrapyard -10/Materials (discovered 3 exits: [*Mat x2] / [*Min]) -10/Mines (discovered 1 exit: [*Mat]) History --------- Turn | Location | Event 6 | -11/Scrapyard | Discovered new exit (range 16) 132 | -11/Scrapyard | Entered Materials 301 | -10/Materials | Build established: Mutant 434 | -10/Materials | Discovered new exit (range 11) 449 | -10/Materials | Discovered new exit (range 16) 1074 | -10/Materials | Discovered new exit (range 11) 1253 | -10/Materials | Entered Mines 1337 | -10/Mines | Core integrity fell below 50% 1445 | -10/Mines | Discovered new exit (range 5) 1540 | -10/Mines | Assisted by bots powering up and referring to "LRC-V3" 1723 | -10/Mines | Assembled infested the area 1728 | -10/Mines | Assisted by a Guerilla fighting off Assembled 1759 | -10/Mines | Core integrity fell below 20% 1760 | -10/Mines | Destroyed by D-53 Grenadier with Mini Grenade Launcher Last Messages --------------- 01746_ C-30 ARC bursts open, deploying its payload. 01746_ D-53 Grenadier unfolds itself. 01750_ as-74625 destroyed. 01750_ as-48531 destroyed. 01750_ as-76826 destroyed. 01750_ as-39748 destroyed. 01751_ The unstable cave ceiling collapses. 01751_ as-15191 destroyed. 01751_ as-34243 destroyed. 01751_ as-10707 destroyed. 01751_ as-70318 destroyed. 01752_ as-25569 destroyed. 01752_ as-91350 destroyed. 01752_ as-81345 destroyed. 01752_ as-27551 destroyed. 01752_ as-52019 destroyed. 01753_ as-28075 destroyed. 01755_ as-45955 destroyed. 01756_ Lgt. Treads destroyed. 01758_ Imp. Light Cannon destroyed. Map ----- +----------------------------------------------------+ | ????????????###??????????????????????????????????? | | ???????????## ####?????#########????????##??????? | | ???????????# ####### ## ###?????# ##?????? | | ????????????# ##???# ##????? | | ?????????????# #### #????? | | ?????????????## ## #????? | | ????########### ##### #????? | | ###?# ##??## #????? | | #?# ######### ###??## #????? | | # ### #???????## ##?#### """ ##????? | | # #????????### #?## """ ######?????? | | # #####??????????## #?# """ ##??????????? | | # ###?????????????# #### #???????????? | | ##???????????? #?# ##???????????? | | % ##?????????? ##?# ##????????????? | | ##???????? ##??## ## #?????????????? | | ##???????? ?????###?# #?????????????? | | #??????? #?????????# ## #?????????????? | | #???????##??????????# ## ##?????????????? | | # ##???????????????????# ## #??????????????? | | # ##??????????????????### ## ##?????????????? | | # ##??????????????##### # #?????????????? | | ## ##???????????????# ### #?????????????? | | ?####????????????????# ###?# ######????????? | | ?????????????????????# #?## ## ##???????? | | ?????????????????##### @ #### #???????? | | ?????????? ## #???????? | | ?????????????######### # #???????? | | ????????????????????## # #???????? | | ????????????????????# #???????? | | ????????????????????# ##???????? | | #???????????# ## dd ##????????? | | ##??????????# t #?????????? | | #??????????# ## ##????????? | | #??????????## ????# #????????? | | #??????????????????## # #???????? | | #???????????????????# #### # #???????? | | ##???????????????????# ????# # ##???????? | | #????????????????????# ????? % ######????????? | | #????????????????????#?????? *! #?????????????? | | #???????????????????????????###%%%##?????????????? | | #?????????????????????????????#%%#???????????????? | | #?????????????????????????????# ="???????????????? | | #?????????????????????????????# %#???????????????? | | ??????????????????????????????# = ???????????????? | | ?????????????????????????????? % ???????????????? | | ?????????????????????????????? !%???????????????? | | ??????????????????????????????# =???????????????? | | ??????????????????????????????# %??????????????? | | ######????????????????????????## ???????????????? | +----------------------------------------------------+ Best States ------------- Heat Dissipation 25 Energy Generation 10 Energy Capacity 250 Matter Stores 300 Matter Capacity 300 Sight Range 16 Terrain Scan Density 10 Evasion (%) 40 Recoil Reduction 2 Item Schematics ----------------- None Robot Schematics ------------------ None Fabricated ------------ Nothing Alien Tech Used ----------------- None Achievements -------------- None Challenges ------------ None Game ------ Seed ThunderEnergyWings Manual? 1 Play Time 00:19:14 Cumulative 35.7 hours Start 2021.06.05 @ 16:08:05 End 2021.06.05 @ 16:33:05 Sessions 1 Manual Loads 0 Difficulty Rogue Special Mode None Game No. 33 Rogue 33 Adventurer 0 Explorer 0 Win Type - Total 0 Types 0/0/0/0/0/0/0/0/0 Lore% 26 Gallery% 34 Achievement% 23 Wizard Run 0 Options --------- ASCII 0 Keyboard 1 Movement Numpad Keybinds 0 Fullscreen 1 Font 18/SmallcapsGlow Map View 76x50 Tactical HUD 1 Map Filters NONE Filters NONE Steam 1 RUN: 39f334cd-6d44-4659-aff0-80d97b91c971